bitfinex/quotes_ETHUSD_20250222
["timestamp","ask_amount","ask_price","bid_price","bid_amount"]
[1740185832992,7.54120851,2685.7,2685.6,7.59632469]
[1740185834037,10.33020851,2685.7,2685.6,6.848]
[1740185834245,3.72384,2685.4,2685.3,8e-08]
[1740185834425,6.72384,2685.4,2685.3,8e-08]
[1740185834629,6.77941588,2685.4,2685.3,8e-08]
[1740185835368,0.05557588,2685.4,2685.3,4.48133322]
[1740185835577,4.48219,2686.0,2685.3,5.24433322]
[1740185835798,3.0533994,2685.9,2685.4,3.72376008]
[1740185835938,3.0533994,2685.9,2685.4,5.20663333]
[1740185836141,3.0533994,2685.9,2685.8,4.49558]
[1740185836142,0.0533994,2685.9,2685.8,4.49558]
[1740185836486,3.765,2686.1,2685.5,8e-08]
[1740185836694,3.72356,2685.6,2685.5,8e-08]
[1740185837045,3.72311,2686.0,2685.5,8e-08]
[1740185837388,3.72356,2685.6,2685.5,8e-08]
[1740185837596,3.77727551,2685.6,2685.5,8e-08]
[1740185840099,4.54227551,2685.6,2685.5,8e-08]
[1740185840399,7.54227551,2685.6,2685.5,8e-08]
[1740185840771,9.78127551,2685.6,2685.5,8e-08]
[1740185841585,6.77727551,2685.6,2685.5,8e-08]
[1740185841967,3.77727551,2685.6,2685.5,8e-08]
[1740185842608,0.05371551,2685.6,2685.5,3.72370008]
[1740185842900,0.05371551,2685.6,2685.5,4.49600008]
[1740185843202,3.72238,2686.5,2685.6,0.7723]
[1740185843408,3.0,2686.4,2686.1,0.7723]
[1740185843710,0.05402224,2686.4,2686.2,8e-08]
[1740185844204,3.77732787,2686.3,2686.2,8e-08]
[1740185845071,0.05473787,2686.3,2686.2,8e-08]
[1740185845472,3.72231,2686.5,2686.2,8e-08]
[1740185845672,0.05484937,2686.3,2686.2,8e-08]
[1740185845875,3.72231,2686.5,2686.2,8e-08]
[1740185846071,0.05484937,2686.3,2686.2,8e-08]
[1740185846318,6.72225,2686.6,2686.2,8e-08]
[1740185846499,0.05484937,2686.3,2686.2,8e-08]
[1740185846693,3.72234,2686.5,2686.2,8e-08]
[1740185847313,0.05484937,2686.4,2686.2,8e-08]
[1740185847519,3.77729937,2686.4,2686.2,8e-08]
[1740185847815,3.72259,2686.3,2686.2,8e-08]
[1740185848495,3.77743937,2686.3,2686.2,8e-08]
[1740185849281,7.54243937,2686.3,2686.2,8e-08]
[1740185849918,3.72314,2685.9,2685.8,8e-08]
[1740185850278,4.54304513,2685.9,2685.8,8e-08]
[1740185850479,0.81990513,2685.9,2685.6,8e-08]
[1740185850791,3.72342,2685.7,2685.6,8e-08]
[1740185851010,3.72342,2685.7,2685.5,6.85]
[1740185851011,3.72356,2685.6,2685.5,6.85]
[1740185851609,3.77840938,2685.6,2685.5,6.85]
[1740185853407,4.5169,2685.5,2685.4,0.76364978]
[1740185853807,4.57091296,2685.5,2685.4,0.76364978]
[1740185854103,3.77771296,2685.5,2685.4,0.76364978]
[1740185860624,5.96284,2685.4,2685.3,8e-08]
[1740185861133,6.01644395,2685.4,2685.3,8e-08]
[1740185863845,6.84914395,2685.4,2685.3,8e-08]
[1740185864549,3.72439,2685.0,2684.9,8e-08]
[1740185864936,3.77770574,2685.0,2684.9,8e-08]
[1740185868739,0.05331574,2685.0,2684.9,8e-08]
[1740185869061,0.05331574,2685.0,2684.9,4.47663008]
[1740185869579,0.7775,2686.2,2685.4,0.7521]
[1740185869728,0.27489343,2685.9,2685.5,8e-08]
[1740185869927,3.72324,2685.9,2685.5,8e-08]
[1740185870129,3.72338,2685.8,2685.5,8e-08]
[1740185870439,3.72329,2685.8,2685.5,8e-08]
[1740185870754,3.72343,2685.7,2685.5,8e-08]
[1740185871145,3.72329,2685.8,2685.5,8e-08]
[1740185874169,3.72356,2685.6,2685.5,8e-08]
[1740185875152,3.0,2685.9,2685.5,8e-08]
[1740185875486,3.72349,2685.7,2685.5,8e-08]
[1740185876279,7.44699,2685.7,2685.5,8e-08]
[1740185876485,3.72349,2685.7,2685.5,8e-08]
[1740185878476,6.72324,2685.9,2685.5,8e-08]
[1740185878678,3.72337,2685.8,2685.5,8e-08]
[1740185878882,3.77494267,2685.8,2685.5,8e-08]
[1740185879675,3.72343,2685.7,2685.5,8e-08]
[1740185879978,3.77354499,2685.6,2685.5,8e-08]
[1740185888086,6.01254499,2685.6,2685.5,8e-08]
[1740185888282,6.81824499,2685.6,2685.5,8e-08]
[1740185889701,3.72439,2685.0,2684.9,8e-08]
[1740185890089,3.77398393,2685.0,2684.9,8e-08]
[1740185890781,6.01298393,2685.0,2684.9,8e-08]
[1740185891890,0.04959393,2685.0,2684.9,8e-08]
[1740185893010,0.04959393,2685.0,2684.9,3.72453008]
[1740185893197,3.72336,2685.8,2685.3,3.72396]
[1740185893375,3.72344,2685.7,2685.4,8e-08]
[1740185893573,3.72357,2685.6,2685.4,8e-08]
[1740185894205,0.04963116,2685.5,2685.4,8e-08]
[1740185894404,3.72359,2685.6,2685.4,8e-08]
[1740185894597,0.04963116,2685.5,2685.4,8e-08]
[1740185894801,3.72343,2685.7,2685.4,8e-08]
[1740185895110,3.77322116,2685.6,2685.4,8e-08]
[1740185895321,0.04963116,2685.6,2685.4,8e-08]
[1740185896274,3.7237,2685.5,2685.4,8e-08]
[1740185896479,5.9627,2685.5,2685.4,8e-08]
[1740185896704,6.01243359,2685.5,2685.4,8e-08]
[1740185897823,6.80273359,2685.5,2685.4,8e-08]
[1740185898789,9.80273359,2685.5,2685.4,8e-08]
[1740185898988,10.35273359,2685.5,2685.4,8e-08]
[1740185899306,3.72439,2685.0,2684.9,8e-08]
[1740185899823,3.77419808,2685.0,2684.9,8e-08]
[1740185900601,0.04980808,2685.0,2684.9,8e-08]
[1740185900801,8.9628,2685.5,2684.9,3.72453008]
[1740185901122,3.77364808,2685.4,2685.0,3.72427]
[1740185901683,3.77364808,2685.4,2684.9,4.276525]
[1740185901918,0.04980808,2685.4,2685.0,3.72433]
[1740185902111,3.77368808,2685.4,2685.1,0.4276335]
[1740185902513,0.04980808,2685.4,2685.1,0.4276335]
[1740185902724,3.77364808,2685.4,2685.1,0.4276335]
[1740185903520,3.77364808,2685.4,2684.9,0.552005]
[1740185903701,3.77365808,2685.4,2685.1,0.7854]
[1740185904329,0.04980808,2685.4,2685.1,0.7854]
[1740185904526,0.04980808,2685.4,2685.2,3.72409008]
[1740185904689,0.04980808,2685.4,2685.3,13.30937008]
[1740185904892,4.00329713,2686.0,2685.5,3.72362]
[1740185905092,4.00329713,2686.0,2685.6,8e-08]
[1740185905093,3.72301,2686.0,2685.6,8e-08]
[1740185905289,4.51328,2686.1,2685.6,3.72353008]
[1740185905495,4.51325,2686.1,2685.6,8e-08]
[1740185905690,3.72279,2686.2,2685.7,4.50881]
[1740185905933,3.72279,2686.2,2685.7,8.23215]
[1740185906127,3.72279,2686.2,2685.7,4.50874]
[1740185907299,3.72289,2686.1,2685.7,0.7854]
[1740185907529,3.72314,2685.9,2685.7,0.7854]
[1740185907731,2.239,2686.2,2685.6,8e-08]
[1740185907732,3.72337,2685.8,2685.6,8e-08]
[1740185907897,3.72342,2685.7,2685.6,8e-08]
[1740185908233,3.72326,2685.9,2685.6,8e-08]
[1740185908938,0.05019907,2685.8,2685.6,8e-08]
[1740185909834,3.72311,2686.0,2685.6,8e-08]
[1740185910229,0.05009668,2685.9,2685.6,8e-08]
[1740185910600,3.77325668,2685.9,2685.6,8e-08]
[1740185912343,0.05009668,2685.9,2685.6,8e-08]
[1740185914459,3.72314,2685.9,2685.6,8e-08]
[1740185914742,0.05012461,2685.8,2685.6,8e-08]
[1740185915710,2.28912461,2685.8,2685.6,8e-08]
[1740185917358,3.77342461,2685.8,2685.6,8e-08]
[1740185919569,3.72397,2685.3,2685.2,8e-08]
[1740185919869,3.77425225,2685.3,2685.2,8e-08]
[1740185920050,6.79945225,2685.3,2685.2,8e-08]
[1740185920253,2.239,2685.0,2684.8,8e-08]
[1740185920644,0.04993775,2684.9,2684.8,8e-08]
[1740185922564,5.96338,2685.1,2684.8,8e-08]
[1740185922867,5.96343,2685.0,2684.8,8e-08]
[1740185923064,2.2887515,2685.0,2684.8,8e-08]
[1740185923957,6.0131515,2685.0,2684.8,8e-08]
[1740185925356,3.72453,2684.9,2684.8,8e-08]
[1740185925963,3.7742815,2684.9,2684.8,8e-08]
[1740185926273,3.72508,2684.5,2684.4,8e-08]
[1740185926472,3.72508,2684.5,2684.0,0.7665]
[1740185926473,3.72543,2684.3,2684.1,8e-08]
[1740185926776,3.7255,2684.2,2684.1,8e-08]
[1740185926947,3.77426443,2684.2,2684.1,8e-08]
[1740185936082,3.72606,2683.8,2683.7,8e-08]
[1740185936246,4.27606,2683.8,2683.7,8e-08]
[1740185936582,8.15286224,2683.8,2683.7,8e-08]
[1740185938744,3.72689,2683.2,2683.1,0.74820441]
[1740185938941,3.72677,2683.3,2683.1,8e-08]
[1740185939144,3.77326877,2683.2,2683.1,8e-08]
[1740185939482,0.04637877,2683.2,2683.1,8e-08]
[1740185939683,3.72607,2683.8,2683.3,0.7885]
[1740185939980,3.72647,2683.5,2683.4,8.80000008]
[1740185940179,3.77097239,2683.7,2683.4,8.80000008]
[1740185940479,3.72581,2684.0,2683.4,12.52661008]
[1740185940687,0.04443336,2683.9,2683.4,12.52661008]
[1740185940899,0.04443336,2683.9,2683.5,13.70547426]
[1740185941189,0.04443336,2683.9,2683.6,4.51476]
[1740185941345,3.72578,2684.0,2683.6,4.51476]
[1740185941546,0.04298098,2683.8,2683.7,3.72619]
[1740185941779,2.239,2684.2,2683.8,3.72599]
[1740185942011,2.239,2684.2,2683.9,1.62521801]
[1740185942304,5.96458,2684.2,2683.9,1.62521801]
[1740185944805,2.239,2684.2,2683.9,1.62521801]
[1740185946907,2.239,2684.2,2684.0,8e-08]
[1740185947110,0.04298098,2684.1,2684.0,8e-08]
[1740185948876,2.239,2684.2,2684.0,8e-08]
[1740185949075,0.04298098,2684.1,2684.0,8e-08]
[1740185949295,0.04298098,2684.1,2684.0,1.41511989]
[1740185954717,5.96438,2684.3,2684.0,1.41511989]
[1740185954910,0.04298098,2684.1,2684.0,1.41511989]
[1740185955216,2.239,2684.3,2684.0,1.41511989]
[1740185955622,0.04298098,2684.2,2684.0,1.41511989]
[1740185956005,5.96443,2684.3,2684.0,1.41511989]
[1740185956213,0.04298098,2684.1,2684.0,1.41511989]
[1740185956418,5.96443,2684.3,2684.0,1.41511989]
[1740185956621,0.04298098,2684.1,2684.0,8e-08]
[1740185956987,5.96443,2684.3,2684.0,8e-08]
[1740185957508,0.04341941,2684.2,2684.0,8e-08]
[1740185957823,6.77973,2684.3,2684.0,8e-08]
[1740185958013,0.04341941,2684.1,2684.0,8e-08]
[1740185958212,0.04341941,2684.1,2684.0,1.25259709]
[1740185958409,6.77973,2684.3,2684.0,1.25259709]
[1740185958618,0.04341941,2684.1,2684.0,8e-08]
[1740185958819,6.77973,2684.3,2684.0,8e-08]
[1740185959020,0.04341941,2684.1,2684.0,8e-08]
[1740185959226,6.77973,2684.3,2684.0,8e-08]
[1740185959433,0.04341941,2684.1,2684.0,8e-08]
[1740185959588,6.77973,2684.3,2684.0,8e-08]
[1740185959787,0.04341941,2684.1,2684.0,8e-08]
[1740185959991,6.77973,2684.3,2684.0,8e-08]
[1740185959992,10.50517,2684.3,2684.0,8e-08]
[1740185960224,0.04341941,2684.1,2684.0,8e-08]
[1740185960428,5.96443,2684.3,2684.0,8e-08]
[1740185960606,0.04341941,2684.1,2684.0,8e-08]
[1740185960791,5.96443,2684.3,2684.0,1.25258509]
[1740185960995,0.04341941,2684.1,2684.0,8e-08]
[1740185961194,5.96443,2684.3,2684.0,8e-08]
[1740185961394,0.04390448,2684.1,2684.0,8e-08]
[1740185961629,5.96443,2684.3,2684.0,8e-08]
[1740185961832,0.04390448,2684.1,2684.0,8e-08]
[1740185962004,5.96443,2684.3,2684.0,8e-08]
[1740185962206,0.04390448,2684.1,2684.0,8e-08]
[1740185962532,5.96443,2684.3,2684.0,8e-08]
[1740185962832,0.04390448,2684.1,2684.0,8e-08]
[1740185963031,5.96443,2684.3,2684.0,8e-08]
[1740185963532,0.04390448,2684.2,2684.0,8e-08]
[1740185963732,5.96443,2684.3,2684.0,8e-08]
[1740185963909,0.04390448,2684.1,2684.0,8e-08]
[1740185964110,5.96443,2684.3,2684.0,8e-08]
[1740185964312,0.04390448,2684.2,2684.0,8e-08]
[1740185964497,5.96441,2684.3,2684.0,8e-08]
[1740185964699,0.04390448,2684.2,2684.0,8e-08]
[1740185964997,5.96441,2684.3,2684.0,8e-08]
[1740185965653,0.04390448,2684.2,2684.0,8e-08]
[1740185965934,5.96441,2684.3,2684.0,1.25259009]
[1740185966097,0.04390448,2684.1,2684.0,1.25259009]
[1740185966294,5.96441,2684.3,2684.0,1.25259009]
[1740185966499,0.04390448,2684.2,2684.0,8e-08]
[1740185966711,5.96441,2684.3,2684.0,8e-08]
[1740185966934,0.04390448,2684.2,2684.0,8e-08]
[1740185967133,5.96441,2684.3,2684.0,8e-08]
[1740185967453,0.04390448,2684.1,2684.0,8e-08]
[1740185967661,5.96441,2684.3,2684.0,8e-08]
[1740185967799,0.04390448,2684.1,2684.0,8e-08]
[1740185967994,0.8153,2684.5,2684.0,1.25259009]
[1740185968258,2.239,2684.5,2684.2,3.72543]
[1740185968796,0.04242322,2684.4,2684.2,3.72543]
[1740185969432,2.239,2684.6,2684.2,3.72543]
[1740185969625,0.04263783,2684.3,2684.2,5.55314301]
[1740185969805,2.239,2684.6,2684.2,5.55314301]
[1740185970015,0.04263783,2684.3,2684.2,5.55314301]
[1740185970219,2.239,2684.9,2684.6,3.72487]
[1740185970422,2.239,2684.9,2684.7,8e-08]
[1740185970643,4.84240336,2685.2,2684.7,3.72472008]
[1740185970809,4.84240336,2685.2,2684.7,0.77350008]
[1740185970810,0.8313,2685.2,2684.7,0.77350008]
[1740185971167,2.239,2685.2,2684.8,3.72465]
[1740185971440,0.7839,2686.1,2685.2,3.72411]
[1740185971733,3.7235,2685.7,2685.3,8e-08]
[1740185972136,3.72384,2685.4,2685.3,8e-08]
[1740185972504,2.239,2685.4,2685.3,8e-08]
[1740185972704,5.96284,2685.4,2685.3,8e-08]
[1740185980570,5.96284,2685.4,2684.9,8e-08]
[1740185980571,3.72439,2685.0,2684.9,8e-08]
[1740185980755,4.48149,2685.0,2684.9,8e-08]
[1740185981068,6.72049,2685.0,2684.9,8e-08]
[1740185981573,7.27049,2685.0,2684.9,8e-08]
[1740185981761,10.27049,2685.0,2684.9,8e-08]
[1740185983828,10.31437788,2685.0,2684.9,8e-08]
[1740185984860,3.03998788,2685.0,2684.9,8e-08]
[1740185985051,6.00727788,2685.0,2684.9,8e-08]
[1740185985252,2.28288788,2685.0,2684.9,8e-08]
[1740185986056,6.00727788,2685.0,2684.9,8e-08]
[1740185986833,2.28288788,2685.0,2684.9,8e-08]
[1740185987756,6.00727788,2685.0,2684.9,8e-08]
[1740185988078,2.28288788,2685.0,2684.9,8e-08]
[1740185988239,0.04388788,2685.0,2684.9,8e-08]
[1740185988775,8.96305,2685.3,2684.9,0.82779809]
[1740185988985,8.96305,2685.3,2684.9,8e-08]
[1740185988986,0.04388788,2685.0,2684.9,8e-08]
[1740185989176,8.96305,2685.3,2684.9,8e-08]
[1740185989354,0.04395317,2685.0,2684.9,8e-08]
[1740185989550,5.96339,2685.0,2684.9,8e-08]
[1740185989857,10.33974317,2685.0,2684.9,8e-08]
[1740185990066,5.96422,2684.4,2684.3,8e-08]
[1740185990367,6.00807061,2684.4,2684.3,8e-08]
[1740185992974,2.28285061,2684.4,2684.3,8e-08]
[1740185993573,6.00807061,2684.4,2684.3,8e-08]
[1740185995471,3.76907061,2684.4,2684.3,8e-08]
[1740185998572,7.31907061,2684.4,2684.3,8e-08]
[1740185998759,3.72578,2684.0,2683.9,8e-08]
[1740185999070,6.72578,2684.0,2683.9,8e-08]
[1740185999273,6.76894957,2684.0,2683.9,8e-08]
[1740186001456,6.76894957,2684.0,2683.5,8e-08]
[1740186001457,3.72633,2683.6,2683.5,8e-08]
[1740186001652,3.72621,2683.7,2683.5,8e-08]
[1740186001846,3.72633,2683.6,2683.5,0.77150008]
[1740186002176,3.72633,2683.6,2683.5,8e-08]
[1740186002382,6.72633,2683.6,2683.5,8e-08]
[1740186003787,3.0,2683.6,2683.5,8e-08]
[1740186003955,6.72633,2683.6,2683.5,8e-08]
[1740186004709,6.72675,2683.3,2683.2,8e-08]
[1740186011183,7.27675,2683.3,2683.2,8e-08]
[1740186011357,5.239,2683.3,2683.2,8e-08]
[1740186011681,8.96575,2683.3,2683.2,8e-08]
[1740186013474,3.0,2683.3,2683.2,8e-08]
[1740186013684,0.7981,2683.9,2683.2,4.36866325]
[1740186013851,0.27778192,2683.9,2683.5,3.72647]
[1740186014052,3.76896957,2684.0,2683.6,0.7947]
[1740186014647,3.76896957,2684.0,2683.7,8e-08]
[1740186014648,0.04316957,2684.0,2683.7,8e-08]
[1740186014853,0.04316957,2684.0,2683.8,0.95947001]
[1740186015284,3.76896957,2684.0,2683.8,0.95947001]
[1740186015793,0.04316957,2684.0,2683.8,0.95947001]
[1740186017585,3.0,2684.1,2683.8,0.95947001]
[1740186017985,0.04050737,2684.0,2683.9,8e-08]
[1740186018185,0.04050737,2684.0,2683.9,0.46856409]
[1740186018386,3.72546,2684.3,2683.9,1.29466409]
[1740186018595,0.04060074,2684.0,2683.9,0.82610008]
[1740186018770,3.72536,2684.3,2683.9,0.82610008]
[1740186018976,0.04060074,2684.0,2683.9,0.82610008]
[1740186019210,3.72536,2684.3,2683.9,0.82610008]
[1740186019512,0.04069414,2684.0,2683.9,4.55202008]
[1740186019697,3.72524,2684.4,2684.0,4.64952401]
[1740186019900,2.239,2684.5,2684.0,4.64952401]
[1740186020727,3.72516,2684.5,2684.0,4.64952401]
[1740186021323,3.72523,2684.4,2684.0,0.92375401]
[1740186021485,7.45058,2684.4,2683.9,0.82610008]
[1740186021687,3.72523,2684.4,2683.9,0.82610008]
[1740186022001,0.805,2684.8,2684.0,0.8261]
[1740186022201,3.72508,2684.5,2684.0,0.8261]
[1740186022402,3.72535,2684.4,2684.0,0.8261]
[1740186022702,3.72535,2684.4,2684.1,0.45519401]
[1740186023211,1.08625874,2684.8,2684.3,3.7253]
[1740186023388,4.00601874,2684.8,2684.4,0.8261]
[1740186023787,3.72482,2684.7,2684.4,0.8261]
[1740186024176,3.72501,2684.6,2684.4,0.8261]
[1740186024377,3.72508,2684.5,2684.4,0.8261]
[1740186025778,3.72508,2684.5,2684.1,1.28129401]
[1740186025978,3.72535,2684.4,2684.1,1.28129401]
[1740186026230,3.72535,2684.4,2684.1,0.8261]
[1740186026524,3.72535,2684.4,2684.1,1.58791943]
[1740186026878,3.72535,2684.4,2684.2,8e-08]
[1740186027219,7.45065,2684.4,2684.2,8e-08]
[1740186027709,3.72531,2684.4,2684.2,8e-08]
[1740186029126,3.72536,2684.3,2684.2,8e-08]
[1740186030906,5.07736,2684.3,2684.2,8e-08]
[1740186031894,6.72519,2684.5,2684.2,8e-08]
[1740186032096,3.72536,2684.3,2684.2,8e-08]
[1740186032301,4.52736,2684.3,2684.2,8e-08]
[1740186032501,3.72592,2683.9,2683.8,8e-08]
[1740186033089,3.76697831,2683.9,2683.8,8e-08]
[1740186033312,3.72619,2683.7,2683.6,8e-08]
[1740186033506,4.52819,2683.7,2683.6,8e-08]
[1740186033714,4.56908957,2683.7,2683.6,8e-08]
[1740186034621,0.04089957,2683.7,2683.6,0.82890008]
[1740186035023,3.72619,2683.7,2683.6,8e-08]
[1740186035219,3.76644519,2683.7,2683.6,8e-08]
[1740186036032,0.04025519,2683.7,2683.6,8e-08]
[1740186036393,3.72608,2683.8,2683.6,8e-08]
[1740186036635,0.04023651,2683.7,2683.6,8e-08]
[1740186036934,3.72608,2683.8,2683.6,8e-08]
[1740186037232,0.04023651,2683.7,2683.6,8e-08]
[1740186037532,3.72592,2683.9,2683.6,8e-08]
[1740186037833,0.04017112,2683.8,2683.6,8e-08]
[1740186039396,3.72619,2683.7,2683.6,8e-08]
[1740186039999,0.04017112,2683.7,2683.6,8e-08]
[1740186040327,3.76636112,2683.7,2683.6,8e-08]
[1740186040498,5.96519,2683.7,2683.6,8e-08]
[1740186040696,5.96547,2683.5,2683.4,8e-08]
[1740186041129,6.0056131,2683.5,2683.4,8e-08]
[1740186044018,2.2791431,2683.5,2683.4,8e-08]
[1740186044602,6.0056131,2683.5,2683.4,8e-08]
[1740186045529,5.96575,2683.3,2683.2,8e-08]
[1740186045731,6.00394307,2683.3,2683.2,8e-08]
[1740186047435,0.03819307,2683.3,2683.2,8e-08]
[1740186051539,0.03819307,2683.3,2683.0,4.43806427]
[1740186052105,3.72703,2683.1,2683.0,0.71091427]
[1740186052341,6.77683,2683.1,2683.0,0.71091427]
[1740186052541,6.77683,2683.1,2682.8,8.8]
[1740186052542,3.72731,2682.9,2682.8,8.8]
[1740186053018,3.76550307,2682.9,2682.8,8.8]
[1740186054237,6.00450307,2682.9,2682.8,8.8]
[1740186054857,2.27719307,2682.9,2682.8,8.8]
[1740186056550,0.03819307,2682.9,2682.8,12.52744]
[1740186056749,3.72704,2683.1,2682.8,6.97633448]
[1740186056956,0.03790324,2683.0,2682.8,5.37]
[1740186057119,3.72704,2683.1,2682.8,5.37]
[1740186057322,3.76508324,2683.0,2682.8,5.37]
[1740186057520,3.72731,2682.9,2682.8,5.37]
[1740186057922,3.76521324,2682.9,2682.8,5.37]
[1740186058526,0.03790324,2682.9,2682.8,5.37]
[1740186058757,3.76521324,2682.9,2682.8,5.37]
[1740186059657,0.03790324,2682.9,2682.8,5.37]
[1740186059871,3.76521324,2682.9,2682.8,5.37]
[1740186060361,0.03790324,2682.9,2682.8,5.37]
[1740186060662,5.96606,2683.1,2682.8,5.37]
[1740186060876,0.03790324,2682.9,2682.8,5.37]
[1740186061063,5.96603,2683.1,2682.8,5.37]
[1740186061228,0.03790324,2682.9,2682.8,5.37]
[1740186061430,5.96603,2683.1,2682.8,5.37]
[1740186061941,0.03790324,2683.0,2682.8,5.37]
[1740186066247,4.56364324,2683.0,2682.8,5.37]
[1740186068471,3.76514324,2683.0,2682.8,5.37]
[1740186071375,0.03790324,2683.0,2682.8,9.09735]
[1740186071552,3.72709,2683.1,2682.8,5.37]
[1740186071750,0.03755734,2683.0,2682.8,5.37]
[1740186072962,0.03755734,2683.0,2682.8,7.159757]
[1740186073151,3.72681,2683.3,2682.9,4.54091]
[1740186073348,0.03758152,2683.2,2682.9,4.54091]
[1740186073575,6.73532,2683.4,2682.9,4.54083]
[1740186073775,3.76434152,2683.3,2682.9,4.54083]
[1740186074475,3.76434152,2683.3,2683.0,5.37]
[1740186074772,3.7269,2683.2,2683.0,5.37]
[1740186074939,0.03761891,2683.1,2683.0,5.37]
[1740186075945,3.72681,2683.3,2683.0,5.37]
[1740186076277,0.03767501,2683.2,2683.0,5.37]
[1740186076639,3.72695,2683.2,2683.0,5.37]
[1740186076862,0.03767501,2683.1,2683.0,5.37]
[1740186077466,0.03767501,2683.1,2683.0,10.6399627]
[1740186077776,3.72633,2683.6,2683.1,4.55025]
[1740186077979,0.03772176,2683.5,2683.1,4.55024]
[1740186078178,3.72605,2683.9,2683.3,3.72666]
[1740186078383,0.03772176,2683.8,2683.5,0.8233]
[1740186078687,2.239,2683.9,2683.5,0.8233]
[1740186078885,0.03787133,2683.7,2683.5,0.8233]
[1740186079049,3.7262,2683.7,2683.4,5.37]
[1740186079248,0.03787133,2683.6,2683.4,9.09653]
[1740186079547,3.72613,2683.8,2683.4,5.37]
[1740186079755,3.76409068,2683.7,2683.4,5.37]
[1740186080292,0.03788068,2683.7,2683.5,1.019603]
[1740186080591,3.72606,2683.8,2683.5,1.019603]
[1740186080794,0.03797416,2683.7,2683.4,6.13148861]
[1740186080957,3.72606,2683.8,2683.4,6.13148861]
[1740186081159,0.03797416,2683.7,2683.4,6.13148861]
[1740186081492,3.72606,2683.8,2683.4,9.85808861]
[1740186081652,0.03797416,2683.6,2683.4,9.85808861]
[1740186081857,3.72606,2683.8,2683.5,1.09573886]
[1740186083398,3.72606,2683.8,2683.6,5.37]
[1740186085963,3.72619,2683.7,2683.6,5.37]
[1740186086168,5.96519,2683.7,2683.6,5.37]
[1740186087705,3.72689,2683.2,2683.1,5.37]
[1740186088380,3.765182,2683.2,2683.1,5.37]
[1740186088801,6.004182,2683.2,2683.1,5.37]
[1740186089169,9.554182,2683.2,2683.1,5.37]
[1740186092513,3.72723,2683.0,2682.8,5.37]
[1740186092808,0.03803959,2682.9,2682.8,5.37]
[1740186093009,3.76534959,2682.9,2682.8,5.37]
[1740186093214,0.03803959,2682.9,2682.8,5.37]
[1740186093518,3.72719,2683.0,2682.8,5.37]
[1740186093693,0.03803959,2682.9,2682.8,5.37]
[1740186096207,2.27703959,2682.9,2682.8,5.37]
[1740186097011,6.00434959,2682.9,2682.8,5.37]
[1740186100446,5.96658,2682.7,2682.5,5.37]
[1740186100604,3.72745,2682.8,2682.5,5.37]
[1740186100934,0.03624379,2682.7,2682.5,5.37]
[1740186101220,0.03624379,2682.7,2682.1,9.076]
[1740186101221,8.96742,2682.1,2682.0,5.37]
[1740186101418,3.72886,2681.8,2681.7,5.37]
[1740186101723,5.96813,2681.6,2681.4,5.37]
[1740186101889,5.96825,2681.5,2681.4,5.37]
[1740186102085,2.239,2681.5,2681.4,5.37]
[1740186102345,2.239,2681.8,2681.4,9.0993]
[1740186102622,0.8248,2682.5,2681.6,0.8029]
[1740186102809,3.72783,2682.6,2682.1,4.53126]
[1740186102984,4.55244,2682.7,2682.2,9.09824]
[1740186103187,2.239,2682.6,2682.2,5.37]
[1740186103385,3.72814,2682.3,2682.2,5.37]
[1740186103582,5.9668,2682.6,2682.2,5.37]
[1740186104485,9.527,2683.6,2682.2,5.37]
[1740186104486,0.8248,2683.1,2682.4,0.8029]
[1740186104690,3.7269,2683.2,2682.6,0.8029]
[1740186104889,3.72706,2683.1,2682.7,5.37]
[1740186105616,3.7269,2683.2,2682.7,5.37]
[1740186105829,5.96575,2683.3,2682.7,5.37]
[1740186106029,2.239,2683.3,2682.8,5.37]
[1740186106202,4.83187631,2683.7,2683.1,0.8029]
[1740186106392,8.55817631,2683.7,2683.1,0.8029]
[1740186106600,2.239,2683.5,2683.2,5.37]
[1740186106999,3.72598,2683.9,2683.3,3.72673]
[1740186107211,3.72628,2683.7,2683.2,5.9184754]
[1740186107414,3.72597,2683.9,2683.3,3.72675]
[1740186107720,2.239,2684.1,2683.7,3.72615]
[1740186107922,2.239,2684.1,2683.8,5.37]
[1740186108664,4.54993,2684.5,2683.8,7.159624]
[1740186108807,0.8248,2684.8,2683.9,6.4489]
[1740186109139,3.72481,2684.7,2684.1,3.72555]
[1740186109651,3.72439,2685.0,2684.3,3.72536]
[1740186109809,2.239,2684.7,2684.3,0.745091]
[1740186110007,3.72509,2684.5,2684.0,14.17]
[1740186110267,5.96409,2684.5,2684.0,14.17]
[1740186110410,3.72468,2684.8,2684.0,14.91516114]
[1740186110762,3.72469,2684.8,2684.0,18.64087114]
[1740186111056,3.62469,2684.8,2684.0,18.64087114]
[1740186111227,3.62469,2684.8,2684.2,3.72542]
[1740186111436,3.72445,2685.0,2684.5,0.7828]
[1740186111644,3.72454,2684.9,2684.6,5.37]
[1740186111969,3.0,2684.8,2684.6,5.37]
[1740186112180,3.03631813,2684.8,2684.6,5.37]
[1740186112466,0.03631813,2684.8,2684.6,5.37]
[1740186112772,0.03631813,2684.8,2684.7,3.72481]
[1740186113068,3.72394,2685.4,2684.7,17.89481]
[1740186113236,3.72406,2685.3,2684.8,8.8]
[1740186113433,0.03684152,2685.2,2684.8,12.52465]
[1740186113668,3.72394,2685.4,2684.8,11.10225952]
[1740186113834,0.03684152,2685.1,2685.0,0.7828]
[1740186114022,3.72394,2685.4,2685.0,0.7828]
[1740186114223,0.03912346,2685.3,2685.0,0.7828]
[1740186114524,3.72425,2685.1,2685.0,0.7828]
[1740186114731,3.76339214,2685.1,2684.9,14.17]
[1740186115364,0.03914214,2685.1,2684.9,14.17]
[1740186115565,7.44727,2685.6,2684.9,14.17]
[1740186115770,3.72397,2685.4,2684.9,14.17]